[Event "SVK ECo-C Extraliga 2021-22"]
[Site "Slovakia"]
[Date "2022.06.11"]
[Round "10.1"]
[White "Petenyi, Tamas"]
[Black "Krejci, Jan"]
[Result "1/2-1/2"]
[ECO "B40"]
[WhiteElo "2452"]
[BlackElo "2520"]
[Annotator "TA"]
[PlyCount "49"]
[EventDate "2021.10.21"]
[EventType "team-tourn"]
[EventCountry "SVK"]
[SourceTitle "playchess.com"]
[Source "ChessBase"]
[SourceQuality "1"]
[TimeControl "40/5400+30:1800+30"]

{[%evp 9,49,0,0,10,17,0,1,0,0,0,1,0,0,0,0,0,-7,-7,-10,0,0,-22,0,-23,0,-54,25,21,25,25,61,71,66,4,10,0,29,0,0,0,0,-12]} 1. e4 {[%emt 0:00:37]} c5 {[%emt 0:00:07]} 2. Nf3 {[%emt 0:01:09]} e6 {[%emt 0:00:05]} 3. b3 {[%emt 0:01:10]} a6 {[%emt 0:00:06]} 4. Bb2 {[%emt 0:00:31]} Nc6 {[%emt 0:00:01]} 5. g3 {[%emt 0:04:22]} d5 {[%emt 0:00:05]} 6. exd5 {[%emt 0:05:09] B40: Sicilian: 2...e6, Unusual lines.} exd5 {[%emt 0:00:03]} 7. Qe2+ {[%emt 0:01:38]} Qe7 {[%emt 0:00:01]} 8. Qxe7+ {[%emt 0:05:18]} (8. Nc3 {looks sharper.} Nf6 9. O-O-O Bg4 10. h3) 8... Ngxe7 {[%emt 0:00:03]} 9. Bg2 {[%emt 0:00:51]} Bf5 {[%emt 0:00:06]} 10. d3 {[%emt 0:07:22]} d4 {[%emt 0:00:01] Inhibits Nc3.} 11. O-O {[%emt 0:00:42]} O-O-O {[%emt 0:14:41]} 12. Nbd2 {[%emt 0:09:37]} Nd5 {[%emt 0:00:35]} 13. a3 {[%emt 0:02:13] [#]} f6 $146 {[%emt 0:10:15]} ({Predecessor:} 13... g6 14. Rfe1 h6 15. Nc4 Be6 16. Bc1 g5 17. Bd2 Bg7 18. Nfe5 Nxe5 19. Nxe5 Rhe8 {½-½ (64) Khetsuriani,B (2244)-Patrelakis,E (2235) Chania 2018}) 14. Rfe1 {[%emt 0:05:47]} (14. b4 {is interesting.} cxb4 15. Nxd4 bxa3 16. Nxf5 axb2 17. Rab1) 14... Kc7 {[%emt 0:04:44]} 15. Ne4 {[%emt 0:13:28]} (15. b4 $5) 15... a5 {[%emt 0:04:13]} 16. Rac1 {[%emt 0:03:26]} Be7 {[%emt 0:07:23]} 17. c4 {[%emt 0:06:03]} (17. Nfd2 $11) 17... dxc3 {[%emt 0:00:37]} ({Black should try} 17... Nb6 $1 $15) 18. Nxc3 $11 {[%emt 0:00:08]} Nxc3 {[%emt 0:00:08]} (18... Bxd3 {[#]} 19. Nd4 $1 Nxd4 20. Nxd5+ Rxd5 21. Bxd5 (21. Rxe7+ Kd6 $14) 21... Ne2+ 22. Rxe2 $1 {[%mdl 512]} Bxe2 23. Re1 $16) 19. Bxc3 {[%emt 0:00:10] Black must now prevent Nh4.} Bxd3 {[%emt 0:14:50] [#]} (19... Rxd3 $2 20. Nh4 Bd7 21. Bxc6 $18) 20. Bxa5+ $1 {[%emt 0:03:42]} b6 {[%emt 0:00:01]} 21. Bc3 {[%emt 0:03:25]} ({White should play} 21. Bd2 $14) 21... Rhe8 {[%emt 0:00:49]} 22. b4 {[%emt 0:05:05]} Bd6 {[%emt 0:03:54]} 23. Rxe8 {[%emt 0:04:04]} Rxe8 {[%emt 0:00:02]} 24. bxc5 bxc5 {[%emt 0:02:22]} 25. Nd2 {[%emt 0:04:37] Weighted Error Value: White=0.15 (very precise) /Black=0.13 (very precise)} 1/2-1/2

[Event "SVK ECo-C Extraliga 2021-22"]
[Site "Slovakia"]
[Date "2022.06.11"]
[Round "10.2"]
[White "Zilka, Stepan"]
[Black "Nemeth, Miklos"]
[Result "1/2-1/2"]
[ECO "E17"]
[WhiteElo "2605"]
[BlackElo "2449"]
[Annotator "TA"]
[PlyCount "52"]
[EventDate "2021.10.21"]
[EventType "team-tourn"]
[EventCountry "SVK"]
[SourceTitle "playchess.com"]
[Source "ChessBase"]
[SourceQuality "1"]
[TimeControl "40/5400+30:1800+30"]

{[%evp 24,52,0,-25,0,-35,0,0,-4,-32,-15,0,-25,-16,-20,-29,0,0,33,27,39,-29,-32,-22,-35,-22,-32,-73,-48,-95,-22]} 1. d4 {[%emt 0:00:06]} Nf6 {[%emt 0:00:07]} 2. c4 {[%emt 0:00:05]} e6 {[%emt 0:00:03]} 3. Nf3 {[%emt 0:00:05][%cal Bg1f3,Bf3h4,Bh4f5][%mdl 32]} b6 {[%emt 0:00:06]} 4. g3 {[%emt 0:00:07]} Bb7 {[%emt 0:00:21]} 5. Bg2 {[%emt 0:00:09]} Be7 {[%emt 0:00:31]} 6. O-O {[%emt 0:00:07]} O-O {[%emt 0:00:16]} 7. d5 {[%emt 0:00:18]} exd5 {[%emt 0:00:10]} 8. Nh4 {[%emt 0:00:07]} c6 {[%emt 0:00:09]} 9. cxd5 {[%emt 0:00:22]} Nxd5 {[%emt 0:00:06]} 10. Nf5 {[%emt 0:00:06]} Nc7 {[%emt 0:01:52]} 11. e4 {[%emt 0:00:34]} d5 {[%emt 0:00:19]} 12. Nc3 {[%emt 0:00:46]} Bf6 {[%emt 0:12:17]} 13. Bf4 {[%emt 0:00:23]} Nba6 {[%emt 0:00:29] E17: Queen's Indian: 4 g3 Bb7 5 Bg2 Be7.} 14. e5 {[%emt 0:24:05]} Bg5 {[%emt 0:14:07]} 15. Qg4 {[%emt 0:00:06]} Ne6 {[%emt 0:00:05][%cal Oh7h5] [#] The position is equal.} 16. Bxg5 $146 {[%emt 0:00:16]} (16. Ne2 {with more complications.} g6 17. Nd6 Bxf4 18. Nxf4 Nxf4 19. gxf4 f5 20. Qg3) ({Predecessor:} 16. Nd6 Bc8 17. Nxc8 Rxc8 18. Rad1 Nac7 19. Ne4 Be7 20. Bc1 f5 21. exf6 Bxf6 22. h4 {0-1 (40) Adnani,M (2448)-Saeed,I (2434) Riadh 2017}) 16... Qxg5 {[%emt 0:00:58]} 17. Qxg5 {[%emt 0:00:05]} Nxg5 {[%emt 0:00:05]} 18. f4 {[%emt 0:00:03]} Ne6 {[%emt 0:07:15]} 19. Nd6 {[%emt 0:00:10]} Bc8 {[%emt 0:12:53]} 20. a3 {[%emt 0:00:15]} Nd4 {[%emt 0:04:38]} 21. b4 $1 $36 {[%emt 0:07:47][%mdl 2048] White has some pressure.} Nc7 {[%emt 0:03:54]} 22. b5 {[%emt 0:03:29]} (22. Rad1 $14 Nf5 23. b5) 22... Ncxb5 {[%emt 0:03:05]} 23. Ncxb5 {[%emt 0:01:24]} Nxb5 {[%emt 0:00:09]} 24. Nxb5 {[%emt 0:03:01]} cxb5 {[%emt 0:00:05]} 25. Rac1 {[%emt 0:04:43]} Bf5 {[%emt 0:04:20]} 26. Rc7 {[%emt 0:04:13]} (26. Bxd5 $15 {is superior.} Rad8 27. Bc6) 26... a5 {[%emt 0:09:45] Weighted Error Value: White=0.21 (precise) /Black=0.16 (very precise)} (26... Rfd8 $17 27. Rd1 Be6) 1/2-1/2

[Event "SVK ECo-C Extraliga 2021-22"]
[Site "Slovakia"]
[Date "2022.06.11"]
[Round "10.2"]
[White "Aczel, Gergely"]
[Black "Zwardon, Vojtech"]
[Result "0-1"]
[ECO "E46"]
[WhiteElo "2545"]
[BlackElo "2468"]
[Annotator "TA"]
[PlyCount "92"]
[EventDate "2021.10.21"]
[EventType "team-tourn"]
[EventCountry "SVK"]
[SourceTitle "playchess.com"]
[Source "ChessBase"]
[SourceQuality "1"]
[TimeControl "40/5400+30:1800+30"]

{[%evp 19,92,0,0,33,17,22,23,9,45,43,46,45,52,52,51,54,47,53,42,41,41,58,54,77,75,60,131,152,465,82,72,48,55,0,70,58,81,22,120,7,194,203,207,207,214,214,214,212,200,201,468,225,529,-413,-413,-558,-558,-612,-612,-29971,-29972,-29972,-29972,-29972,-29973,-29965,-29967,-29990,-29991,-29991,-29992,-29994,-29995,-29995,-29996]} 1. d4 {[%emt 0:00:02]} Nf6 {[%emt 0:00:02]} 2. c4 {[%emt 0:00:05]} e6 {[%emt 0:00:01]} 3. Nc3 {[%emt 0:00:06]} Bb4 {[%emt 0:00:02]} 4. e3 {[%emt 0:00:06]} O-O {[%emt 0:00:10]} 5. Bd2 {[%emt 0:00:04]} d5 {[%emt 0:00:35]} 6. Nf3 {[%emt 0:00:06]} b6 {[%emt 0:00:23]} 7. cxd5 {[%emt 0:00:02]} exd5 {[%emt 0:00:03]} 8. Rc1 {[%emt 0:00:08]} Bb7 {[%emt 0:01:13]} 9. Bd3 {[%emt 0:00:08]} a6 {[%emt 0:02:05]} 10. O-O {[%emt 0:00:08]} Bd6 $1 {[%emt 0:00:11] 10...Bd6 scores better than 10...Nbd7.} 11. Ne5 {[%emt 0:00:09] E52: Nimzo-Indian: Rubinstein: 4...0-0 5 Nf3 d5 6 Bd3 b6.} c5 {[%emt 0:00:07]} 12. f4 {[%emt 0:00:05]} Nc6 {[%emt 0:00:02]} 13. Na4 {[%emt 0:00:23][%cal Rd4c5] [#] White has an edge.} Rc8 $146 {[%emt 0:25:11]} (13... c4 $5 {[%cal Rb6b5]} 14. Bc2 b5 $11) ({Predecessor:} 13... c4 14. Bb1 b5 15. Nc3 b4 16. Na4 a5 17. Be1 Ne8 18. Qh5 g6 19. Qh6 f5 {1-0 (44) Sandipan,C (2597)-Agdestein,S (2637) Warsaw 2014}) 14. dxc5 {[%emt 0:00:06]} bxc5 {[%emt 0:00:21]} (14... Bxe5 15. fxe5 Nxe5 16. Bf5 $16) 15. Nxc5 {[%emt 0:00:04]} Bxc5 {[%emt 0:00:27]} 16. Rxc5 {[%emt 0:00:06]} Qd6 {[%emt 0:01:19]} 17. Rc3 {[%emt 0:03:18][%cal Bc5c3,Bc3b3,Bb3b6][%mdl 32]} Nxe5 {[%emt 0:01:57]} 18. fxe5 {[%emt 0:00:03]} Qxe5 {[%emt 0:00:06]} 19. Rb3 {[%emt 0:00:07]} Bc6 {[%emt 0:06:33]} 20. Bxa6 {[%emt 0:01:11]} Ra8 {[%emt 0:01:17]} 21. Rb6 {[%emt 0:00:08]} Qc7 {[%emt 0:07:20]} 22. Qb3 {[%emt 0:00:06]} (22. Ba5 Nd7 23. Qd4 Rfe8 $17) 22... Ne4 {[%emt 0:02:49]} (22... Rab8 $14 23. Ba5 (23. Rxb8 Rxb8 24. Qc2 Qb6 $14) 23... Qe5) 23. Ba5 $1 $16 {[%emt 0:02:44] Threatens to win with Rc1.} Rfe8 $2 {[%emt 0:11:41]} (23... Qd7 $16) 24. Qc2 $2 {[%emt 0:49:26]} (24. Rc1 $18 {and the rest is easy.}) 24... Re6 {[%emt 0:02:30][%cal Oc7a7]} 25. b4 {[%emt 0:01:54][%cal Bb2b4,Bb4b5][%mdl 32] b5 is the strong threat.} Qa7 $1 {[%emt 0:06:51][%cal Oc6a4] Hoping for ...Ba4!} (25... Rh6 26. g3 Qa7 27. Rxc6 $16) 26. Qd3 {[%emt 0:25:30]} (26. Qc1 $14) 26... h6 {[%emt 0:08:06]} (26... Ba4 $11 27. Bb7 (27. Qxd5 Nf6 $11) 27... Rxb6 28. Bxa8 (28. Bxd5 Rf6 $17) 28... Rd6 29. Bxd5 Rxd5 30. Qxe4 (30. Qxd5 Qxe3+ 31. Kh1 Nf2+ 32. Kg1 Nh3+ 33. Kh1 Qg1+ 34. Rxg1 Nf2#) 30... Qd7) 27. Qd4 $1 $14 {[%emt 0:02:50]} Qe7 $1 {[%emt 0:02:27]} 28. Bd3 {[%emt 0:07:26] This bishop pair is nice.} (28. Be2 $16) 28... Qg5 {[%emt 0:02:32]} (28... Nd2 $1 $11) 29. Be2 {[%emt 0:03:16]} (29. Rf4 $16) 29... Rae8 $2 {[%emt 0:06:38]} ({But not} 29... Rg6 30. Bf3 $16) (29... Be8 $11) 30. b5 $1 $18 {[%emt 0:01:28]} Bd7 {[%emt 0:06:24]} 31. Rxe6 {[%emt 0:00:05]} Rxe6 {[%emt 0:01:05]} 32. Be1 {[%emt 0:02:45]} Nd6 {[%emt 0:03:33]} 33. a4 {[%emt 0:00:01]} Re4 {[%emt 0:00:58]} 34. Qc5 {[%emt 0:01:31]} Nf5 {[%emt 0:00:55]} (34... Qxe3+ {was worth a try.} 35. Qxe3 Rxe3) 35. Bd2 {[%emt 0:01:16]} (35. Qxd5 $142 Qxe3+ 36. Bf2 Qxe2 37. Qxd7) 35... Nd4 $2 {[%emt 0:01:18] [#]} (35... Nh4 {is more resistant.} 36. Rf2 (36. g3 Bh3 $16) 36... Rxa4) 36. exd4 $4 {[%emt 0:00:45][%mdl 8192]} (36. Bd1 $1 $18) 36... Qxd2 $19 {[%emt 0:00:08]} 37. Qxd5 {[%emt 0:00:49]} Rxe2 {[%emt 0:00:29]} 38. Qxf7+ {[%emt 0:00:13]} Kh7 {[%emt 0:00:08]} 39. Qd5 {[%emt 0:00:44]} Qe3+ {[%emt 0:00:50] Black mates.} 40. Kh1 {[%emt 0:00:01]} Re1 {[%emt 0:00:35][%cal Re1f1]} 41. Qf7 {[%emt 0:04:47] [#]} Be8 $1 {[%emt 0:02:28]} 42. Qf8 {[%emt 0:00:51]} Bg6 {[%emt 0:00:12]} 43. h3 {[%emt 0:01:45]} Be4 {[%emt 0:00:09]} 44. Kh2 {[%emt 0:00:43]} Re2 {[%emt 0:00:29]} 45. Rg1 {[%emt 0:00:12]} Qd2 {[%emt 0:00:57]} 46. Qf1 {[%emt 0:03:34]} Rf2 {[%emt 0:00:01] What a fight!  Weighted Error Value: White=0.66/Black=0.39} 0-1

[Event "SVK ECo-C Extraliga 2021-22"]
[Site "Slovakia"]
[Date "2022.06.11"]
[Round "10.2"]
[White "Sahidi, Samir"]
[Black "Piesik, Piotr"]
[Result "1-0"]
[ECO "C07"]
[WhiteElo "2432"]
[BlackElo "2418"]
[Annotator "TA"]
[PlyCount "133"]
[EventDate "2021.10.21"]
[EventType "team-tourn"]
[EventCountry "SVK"]
[SourceTitle "playchess.com"]
[Source "ChessBase"]
[SourceQuality "1"]
[TimeControl "40/5400+30:1800+30"]

{[%evp 25,133,0,0,-23,0,0,0,0,5,0,14,-15,-16,-27,-18,-19,-10,-15,-11,-2,-8,-1,-11,-8,0,0,4,7,8,0,0,0,0,0,2,5,4,0,2,2,2,0,4,0,0,0,0,0,0,0,22,11,78,78,67,64,86,85,164,156,188,183,168,158,268,266,239,230,360,311,339,347,556,547,503,570,567,549,512,362,340,277,333,310,491,501,29971,29972,29971,29973,29972,29974,29980,29974,29975,29973,29969,29968,29980,29981,29981,29982,29982,29981,29981,29982,29984,29985,29986,29987]} 1. e4 {[%emt 0:00:04]} e6 {[%emt 0:00:24]} 2. d4 {[%emt 0:01:03]} d5 {[%emt 0:00:05]} 3. Nd2 {[%emt 0:03:28]} c5 {[%emt 0:01:11]} 4. exd5 {[%emt 0:02:37]} Qxd5 {[%emt 0:00:06]} 5. Ngf3 {[%emt 0:01:11]} cxd4 {[%emt 0:00:15]} 6. Bc4 {[%emt 0:00:38]} Qd6 {[%emt 0:00:06]} 7. O-O {[%emt 0:01:01]} Nf6 {[%emt 0:00:06]} 8. Nb3 {[%emt 0:01:23]} Nc6 {[%emt 0:00:07]} 9. Nbxd4 {[%emt 0:03:15]} Nxd4 {[%emt 0:00:35]} 10. Nxd4 {[%emt 0:02:04]} a6 {[%emt 0:00:09]} 11. c3 {[%emt 0:03:50]} Qc7 {[%emt 0:04:06]} 12. Bb3 {[%emt 0:01:58]} Bd6 {[%emt 0:00:10]} 13. h3 {[%emt 0:01:34]} O-O {[%emt 0:00:06]} 14. Qf3 {[%emt 0:04:13] C07: French Tarrasch: 3...c5, 4 Ngf3 and 4 exd5 Qxd5.} e5 {[%emt 0:23:04]} (14... b5 $5) 15. Nc2 {[%emt 0:01:19]} e4 {[%emt 0:01:12]} 16. Qe2 {[%emt 0:00:22] The position is equal.} Qc5 {[%emt 0:01:49] [#]} 17. Re1 $146 {[%emt 0:03:36]} ({Predecessor:} 17. Qe3 Qe5 18. f4 exf3 19. Qxe5 Bxe5 20. Rxf3 Re8 21. Bf4 Bf5 22. Bxe5 Rxe5 23. Re3 {½-½ (30) Juswanto,D (2402)-Barus,C (2392) Jakarta 2014}) 17... Bd7 {[%emt 0:08:44]} 18. Nd4 {[%emt 0:02:13]} Rae8 {[%emt 0:02:06]} 19. Be3 {[%emt 0:01:54][%cal Od4e6] [#] Ne6! is the strong threat.} Qe5 {[%emt 0:03:53] Inhibits Ne6. ( -> ...Qh2+)} 20. f4 {[%emt 0:00:13]} exf3 {[%emt 0:02:08]} 21. Nxf3 {[%emt 0:00:20]} Qh5 {[%emt 0:09:20] White must now prevent ...Bg3.} 22. Qd3 {[%emt 0:19:13]} Bg3 {[%emt 0:08:35]} 23. Bf2 {[%emt 0:02:52]} Bxf2+ {[%emt 0:00:09]} 24. Kxf2 {[%emt 0:00:09]} Bc6 {[%emt 0:00:07]} 25. Kg1 {[%emt 0:03:01]} Rd8 {[%emt 0:12:49]} 26. Nd4 {[%emt 0:01:55]} Qg5 $132 {[%emt 0:03:28][%csl Gc6][%cal Rg5g2][%mdl 2048] Black has counterplay} 27. Qf1 {[%emt 0:01:33] Active counter play!} Be4 {[%emt 0:01:49]} 28. Qf2 {[%emt 0:01:57]} Rfe8 {[%emt 0:00:37]} 29. Re3 {[%emt 0:01:59]} Bg6 {[%emt 0:01:27]} 30. Rae1 {[%emt 0:01:33]} Rxe3 {[%emt 0:00:53]} 31. Qxe3 {[%emt 0:01:07]} Qxe3+ {[%emt 0:00:17]} (31... Qc5 {is interesting.} 32. Qf4 Re8 33. Rxe8+ Nxe8 34. Qb8 Qe7) 32. Rxe3 {[%emt 0:00:09]} Kf8 {[%emt 0:08:39]} 33. Kf2 {[%emt 0:01:50]} Ne4+ {[%emt 0:02:15]} 34. Ke2 {[%emt 0:02:17]} Nc5 {[%emt 0:00:08]} 35. g4 {[%emt 0:02:40]} h5 {[%emt 0:01:05]} 36. g5 {[%emt 0:02:48]} h4 {[%emt 0:00:35]} 37. Kf3 {[%emt 0:00:08]} Bh5+ {[%emt 0:02:54]} 38. Kf4 {[%emt 0:00:28]} g6 {[%emt 0:00:53]} (38... Rd6 $11 {keeps the balance.}) 39. Bc2 $16 {[%emt 0:01:30]} a5 {[%emt 0:00:40]} 40. b3 {[%emt 0:02:07]} Rd6 {[%emt 0:01:46] White leaves nothing to chance now.} 41. a3 {[%emt 0:35:11][%cal Ba2a3,Ba3b4][%mdl 32]} b6 {[%emt 0:05:04]} (41... Na6 $16 {is a better defense.}) 42. b4 $18 {[%emt 0:00:00]} axb4 {[%emt 0:00:47]} 43. axb4 {[%emt 0:00:00]} Na6 {[%emt 0:00:36][%cal Oa6b4]} 44. Ke5 {[%emt 0:00:00]} Rd8 {[%emt 0:00:23]} (44... Rd7 $16 45. Re4 Nc7) 45. Ba4 {[%emt 0:00:00]} Nc7 {[%emt 0:04:52] [#]} 46. Bc6 {[%emt 0:00:00] Prevents Rd5+.} Ne8 {[%emt 0:00:30]} (46... Kg7 $142 47. Re4 Ne8 48. Rxh4 Nd6) 47. c4 {[%emt 0:00:00]} Nd6 {[%emt 0:01:48]} 48. Rc3 {[%emt 0:00:00]} Ne8 $2 {[%emt 0:08:08]} (48... Kg7 {was called for.} 49. c5 bxc5 50. bxc5 Nc8) 49. Ra3 {[%emt 0:00:00]} Nd6 {[%emt 0:01:52]} 50. Bd5 {[%emt 0:00:00] Threatens to win with Ra7.} Nc8 {[%emt 0:00:09] Prevents Ra7.} 51. Ra8 {[%emt 0:00:00] Hoping for Kf6.} Re8+ {[%emt 0:00:17]} 52. Kf4 {[%emt 0:00:00]} Ne7 {[%emt 0:02:12]} 53. Ra7 {[%emt 0:00:00]} Bd1 {[%emt 0:01:03]} 54. Rb7 {[%emt 0:00:00]} Rd8 {[%emt 0:01:46]} (54... Be2 $142 55. Bxf7 (55. Nxe2 Nxd5+ 56. cxd5 Rxe2 $16) 55... Kxf7) 55. Rxe7 {[%emt 0:00:00]} Rxd5 {[%emt 0:03:37]} (55... Kxe7 $18 56. Nc6+ Ke8) 56. Rxf7+ $1 {[%emt 0:00:00] White mates.} ({Not} 56. cxd5 Kxe7 57. Ke5 Bh5 $14) 56... Kxf7 {[%emt 0:00:01]} 57. cxd5 {[%emt 0:00:00] KB-KN} Ke7 {[%emt 0:00:07]} 58. Ke5 {[%emt 0:00:00]} Bh5 {[%emt 0:01:34]} 59. Ne6 {[%emt 0:01:05]} Bg4 {[%emt 0:00:20]} 60. Nf4 {[%emt 0:01:25]} ({Stronger than} 60. hxg4 h3 61. d6+ Ke8 62. Ng7+ (62. d7+ $2 Kxd7 63. Kf6 h2 $19) 62... Kd7 $11) 60... Bf5 {[%emt 0:00:18]} 61. Ng2 {[%emt 0:00:11]} Bxh3 {[%emt 0:00:22]} 62. Nxh4 {[%emt 0:00:04]} Kf7 {[%emt 0:00:05]} 63. Kd6 {[%emt 0:00:04]} Bf1 {[%emt 0:00:30]} 64. Nf3 {[%emt 0:00:08]} Bg2 {[%emt 0:00:47]} 65. Ne5+ {[%emt 0:00:05]} Kg7 {[%emt 0:00:04]} 66. Ke6 {[%emt 0:00:08]} Be4 {[%emt 0:00:06]} 67. d6 {[%emt 0:00:05] Weighted Error Value: White=0.07 (flawless) /Black=0.35} 1-0

[Event "SVK ECo-C Extraliga 2021-22"]
[Site "Slovakia"]
[Date "2022.06.11"]
[Round "10.3"]
[White "Jurcik, Marian"]
[Black "Polak, Tomas"]
[Result "1/2-1/2"]
[ECO "B12"]
[WhiteElo "2407"]
[BlackElo "2506"]
[Annotator "TA"]
[PlyCount "34"]
[EventDate "2021.10.21"]
[EventType "team-tourn"]
[EventCountry "SVK"]
[SourceTitle "playchess.com"]
[Source "ChessBase"]
[SourceQuality "1"]
[TimeControl "40/5400+30:1800+30"]

{[%evp 12,21,36,21,25,16,40,21,77,71,97,104]} 1. e4 {[%emt 0:00:26]} c6 {[%emt 0:00:13]} 2. d4 {[%emt 0:00:09]} d5 {[%emt 0:00:06]} 3. e5 {[%emt 0:00:53]} Bf5 {[%emt 0:00:11]} 4. Nf3 {[%emt 0:00:08]} e6 {[%emt 0:00:18]} 5. Be2 {[%emt 0:00:09]} Nd7 {[%emt 0:00:25]} 6. O-O {[%emt 0:00:31]} h6 {[%emt 0:01:36]} 7. Nbd2 {[%emt 0:03:18]} Ne7 {[%emt 0:01:11] B12: Caro-Kann: Advance Variation.} 8. Nb3 {[%emt 0:02:12]} Nc8 {[%emt 0:02:01]} 9. a4 {[%emt 0:09:33][%cal Ba2a4,Ba4a5][%mdl 32]} Ncb6 {[%emt 0:01:28]} (9... Be7 $11 {remains equal.}) 10. a5 $16 {[%emt 0:06:04]} Nc4 {[%emt 0:00:14]} 11. Bd3 {[%emt 0:13:50] [#] Black did not feel at home in the position after the opening.  Weighted Error Value: White=0.10 (very precise) /Black=0.32} {Predecessor:} Be7 $146 12. Bxf5 exf5 13. e6 fxe6 14. Re1 Kf7 15. Qe2 Nf8 16. Nc5 Qc8 17. Bf4 g5 {1-0 (25) So,W (2770)-Carlsen,M (2863) chess24.com INT 2020} 1/2-1/2

[Event "SVK ECo-C Extraliga 2021-22"]
[Site "Slovakia"]
[Date "2022.06.11"]
[Round "10.3"]
[White "Rigo, Zsolt"]
[Black "Leniart, Arkadiusz"]
[Result "1/2-1/2"]
[ECO "C84"]
[WhiteElo "2398"]
[BlackElo "2476"]
[Annotator "TA"]
[PlyCount "32"]
[EventDate "2021.10.21"]
[EventType "team-tourn"]
[EventCountry "SVK"]
[SourceTitle "playchess.com"]
[Source "ChessBase"]
[SourceQuality "1"]
[TimeControl "40/5400+30:1800+30"]

{[%evp 13,32,17,15,7,18,22,9,8,22,19,18,0,0,0,0,0,0,-17,-1,-9,-2]} 1. e4 {[%emt 0:00:25]} e5 {[%emt 0:00:04]} 2. Nf3 {[%emt 0:00:36]} Nc6 {[%emt 0:00:09]} 3. Bb5 {[%emt 0:00:45][%cal Bf1b5,Bb5a4,Ba4b3][%mdl 32]} a6 {[%emt 0:00:06]} 4. Ba4 {[%emt 0:00:05]} Nf6 {[%emt 0:00:05]} 5. O-O {[%emt 0:02:01]} Be7 {[%emt 0:00:06]} 6. d3 {[%emt 0:00:42]} b5 {[%emt 0:00:21]} 7. Bb3 {[%emt 0:00:09]} d6 {[%emt 0:00:07][%cal Bd7d6,Bd6d5,Bd5d4][%mdl 32] The position is equal.} 8. Bd2 {[%emt 0:01:44] C84: Closed Ruy Lopez: Unusual White 6th moves.} O-O {[%emt 0:00:59]} 9. h3 {[%emt 0:00:52]} Bb7 {[%emt 0:14:46]} 10. Re1 {[%emt 0:01:05]} a5 {[%emt 0:10:08]} 11. a4 {[%emt 0:07:56]} b4 {[%emt 0:00:13] [#]} 12. Be3 $146 {[%emt 0:18:33]} ({Predecessor:} 12. Bc1 Nb8 13. Nbd2 c5 14. Nf1 Nc6 15. Ng3 Nd4 16. Nxd4 cxd4 17. f4 Qc7 18. fxe5 dxe5 {1-0 (32) Loaiza Cuervo,S (1753)-Gonzalez Bolivar,J (1390) Medellin 2021}) 12... d5 {[%emt 0:06:01]} 13. Nbd2 {[%emt 0:07:14]} d4 {[%emt 0:05:47]} 14. Bg5 {[%emt 0:00:06]} Nd7 {[%emt 0:00:14]} 15. h4 {[%emt 0:05:33]} Kh8 {[%emt 0:12:03] [#] And now ...f6 would win.} 16. Nf1 {[%emt 0:06:37]} h6 {[%emt 0:10:57] A rather calm draw.  Weighted Error Value: White=0.06 (flawless) /Black=0.04 (flawless)} 1/2-1/2